bitfinex/quotes_BTCUSD_20260101
["timestamp","ask_amount","ask_price","bid_price","bid_amount"]
[1767254862849,0.0493042,87779.0,87764.0,0.01139419]
[1767254863053,0.00055,87769.0,87765.0,0.01144]
[1767254863253,0.00055,87769.0,87766.0,0.01144]
[1767254863452,0.0493042,87773.0,87766.0,0.01144]
[1767254864357,0.0493042,87773.0,87766.0,0.02283393]
[1767254864566,0.0493042,87773.0,87766.0,0.01144]
[1767254864750,0.0493042,87773.0,87764.0,0.00010607]
[1767254864952,0.0493042,87773.0,87765.0,0.01144]
[1767254865150,0.0493042,87773.0,87764.0,0.00010607]
[1767254865372,0.0493042,87773.0,87766.0,0.01144]
[1767254866642,0.0001623,87784.0,87756.0,0.01139523]
[1767254866643,0.00055,87766.0,87756.0,0.01139523]
[1767254866854,0.00065603,87766.0,87757.0,0.01144]
[1767254867003,0.00010603,87766.0,87759.0,0.01139484]
[1767254868054,0.00010603,87766.0,87760.0,0.01139471]
[1767254868230,0.00010603,87766.0,87759.0,0.01139484]
[1767254868758,0.00010603,87766.0,87760.0,0.01139471]
[1767254868960,0.00010603,87766.0,87761.0,0.01144]
[1767254869133,0.00010603,87766.0,87759.0,0.01139484]
[1767254869343,0.00010603,87766.0,87760.0,0.01144]
[1767254869551,0.00010603,87766.0,87761.0,0.01144]
[1767254869913,0.04941023,87766.0,87762.0,0.01144]
[1767254870717,0.00010603,87766.0,87762.0,0.01144]
[1767254871140,0.04711124,87766.0,87762.0,0.01144]
[1767254872277,0.04711124,87766.0,87750.0,0.5726209]
[1767254872278,0.00055,87762.0,87751.0,0.01139588]
[1767254872475,0.04755521,87762.0,87752.0,0.02283575]
[1767254872675,0.04700521,87762.0,87752.0,0.02283575]
[1767254872880,0.04700521,87762.0,87754.0,0.01139549]
[1767254873295,0.04700521,87762.0,87755.0,0.01139536]
[1767254873880,0.04700521,87762.0,87754.0,0.01139549]
[1767254874114,0.04700521,87765.0,87762.0,0.000549]
[1767254874348,0.04700521,87765.0,87761.0,0.01144]
[1767254875952,0.00010603,87766.0,87761.0,0.01144]
[1767254876118,0.00010603,87766.0,87765.0,0.000549]
[1767254876469,0.04711124,87766.0,87761.0,0.01144]
[1767254877022,0.04656224,87766.0,87761.0,0.01144]
[1767254878515,0.01144,87773.0,87761.0,0.01144]
[1767254878516,0.04700521,87772.0,87761.0,0.01144]
[1767254879056,0.04700521,87772.0,87762.0,0.01139445]
[1767254879214,0.01144,87773.0,87761.0,0.02283458]
[1767254879398,0.01144,87773.0,87762.0,0.01139445]
[1767254880449,0.04700521,87777.0,87762.0,0.01139445]
[1767254880450,0.04700521,87777.0,87763.0,0.01139432]
[1767254881128,0.04700521,87777.0,87765.0,0.01139406]
[1767254882143,0.04700521,87777.0,87767.0,0.0113938]
[1767254882471,0.04700521,87777.0,87766.0,0.01139393]
[1767254883039,0.04700521,87777.0,87767.0,0.0113938]
[1767254883649,0.04700521,87777.0,87768.0,0.01139367]
[1767254884245,0.01144,87781.0,87769.0,0.01144]
[1767254884467,0.01144,87781.0,87770.0,0.01139341]
[1767254884852,0.05844521,87781.0,87770.0,0.01139341]
[1767254885250,0.05844521,87781.0,87769.0,0.02283354]
[1767254886292,0.01144,87781.0,87771.0,0.01139328]
[1767254886588,0.01144,87781.0,87769.0,0.02283354]
[1767254886753,0.01144,87781.0,87770.0,0.01139341]
[1767254887691,0.01144,87781.0,87771.0,0.01139328]
[1767254888293,0.01144,87781.0,87770.0,0.01139341]
[1767254888701,0.01144,87781.0,87771.0,0.01139328]
[1767254889332,0.0001623,87784.0,87771.0,0.01139328]
[1767254889578,0.04716751,87784.0,87771.0,0.01139328]
[1767254890307,0.04716751,87784.0,87772.0,0.01139315]
[1767254891556,0.04716751,87784.0,87773.0,0.01139302]
[1767254891761,0.04716751,87784.0,87772.0,0.01139315]
[1767254892367,0.04716751,87784.0,87769.0,0.01144]
[1767254892563,0.04716751,87784.0,87769.0,0.02283354]
[1767254893737,0.0001623,87784.0,87772.0,0.04804504]
[1767254893930,0.0001623,87784.0,87772.0,0.05943819]
[1767254894134,0.0001623,87784.0,87772.0,0.04804504]
[1767254894331,0.0001623,87784.0,87772.0,0.05943819]
[1767254894562,0.0001623,87784.0,87772.0,0.04804504]
[1767254894786,0.0001623,87784.0,87772.0,0.05943819]
[1767254895796,0.0001623,87784.0,87773.0,0.01139302]
[1767254896001,0.04716751,87784.0,87771.0,0.01139328]
[1767254896405,0.04716751,87784.0,87770.0,0.52654146]
[1767254896586,0.04716751,87784.0,87771.0,0.01139328]
[1767254897208,0.0001623,87784.0,87772.0,0.04804504]
[1767254897503,0.0001623,87784.0,87773.0,0.05943806]
[1767254897685,0.0001623,87784.0,87773.0,0.04804504]
[1767254897887,0.000549,87773.0,87768.0,0.01139367]
[1767254898090,0.000549,87773.0,87769.0,0.01144]
[1767254898272,0.04700521,87777.0,87769.0,0.01144]
[1767254898474,0.04700521,87777.0,87774.0,0.00043106]
[1767254898882,0.04700521,87777.0,87774.0,6e-08]
[1767254906576,0.0470427,87782.0,87774.0,6e-08]
[1767254910586,0.0001863,87783.0,87774.0,6e-08]
[1767254919059,0.0001863,87783.0,87770.0,0.01139341]
[1767254919462,0.0001863,87783.0,87771.0,0.01139328]
[1767254919920,0.0001863,87783.0,87770.0,0.01139341]
[1767254920160,0.0001863,87783.0,87771.0,0.01139328]
[1767254921366,0.0001863,87783.0,87770.0,0.01139341]
[1767254922184,0.0001863,87783.0,87771.0,0.01139328]
[1767254922965,0.0001863,87783.0,87770.0,0.01139341]
[1767254923983,0.0001863,87783.0,87770.0,0.52654146]
[1767254924806,0.0001863,87783.0,87771.0,0.01139328]
[1767254925339,0.0001863,87783.0,87770.0,0.51514805]
[1767254926043,0.0001863,87783.0,87770.0,0.52654146]
[1767254926705,0.0001863,87783.0,87771.0,0.01139328]
[1767254927037,0.0001863,87783.0,87770.0,0.52654146]
[1767254927240,0.0001863,87783.0,87770.0,0.51514805]
[1767254927811,0.0001863,87783.0,87770.0,0.52654146]
[1767254928723,0.0001863,87783.0,87771.0,0.05875327]
[1767254928926,0.0001863,87783.0,87774.0,0.04735999]
[1767254929221,0.0001863,87783.0,87774.0,0.05875288]
[1767254929424,0.0001863,87783.0,87775.0,0.01139276]
[1767254930134,0.0001863,87783.0,87776.0,0.01139263]
[1767254930329,0.0001863,87783.0,87774.0,0.05875288]
[1767254930890,0.0001863,87783.0,87775.0,0.01139276]
[1767254931486,0.0001863,87783.0,87777.0,0.0113925]
[1767254931777,0.0001863,87783.0,87775.0,0.01139276]
[1767254932033,0.0001863,87783.0,87776.0,0.02283263]
[1767254932285,0.0004,87787.0,87784.0,0.04921135]
[1767254932602,0.0004,87787.0,87779.0,0.06060359]
[1767254932806,0.0004,87787.0,87780.0,0.01139211]
[1767254933261,0.0004,87787.0,87781.0,0.01139198]
[1767254933671,0.0004,87787.0,87782.0,0.01139185]
[1767254933869,0.0004,87787.0,87782.0,0.0606032]
[1767254934218,0.0001446,87791.0,87784.0,0.01139159]
[1767254934407,0.0001446,87791.0,87787.0,0.0113912]
[1767254935608,0.0001446,87791.0,87788.0,0.01139107]
[1767254935808,0.0001446,87791.0,87787.0,0.0113912]
[1767254936229,0.0001446,87800.0,87788.0,0.06060242]
[1767254936456,0.00025065,87800.0,87790.0,0.51473255]
[1767254936666,0.04732637,87800.0,87790.0,0.51473255]
[1767254937114,0.04732637,87800.0,87790.0,0.51421455]
[1767254938845,0.00025065,87800.0,87786.0,0.01139133]
[1767254939051,0.04732637,87800.0,87791.0,0.01144]
[1767254940680,0.04732637,87800.0,87791.0,0.02283068]
[1767254940981,0.04732637,87800.0,87791.0,0.01144]
[1767254941390,0.04732637,87800.0,87791.0,0.02283068]
[1767254941763,0.04732637,87800.0,87791.0,0.01144]
[1767254943203,0.04707572,87790.0,87789.0,0.01144]
[1767254943648,0.04707572,87795.0,87789.0,0.01144]
[1767254944349,0.04707572,87795.0,87789.0,0.01089]
[1767254946031,0.00025065,87800.0,87795.0,0.001099]
[1767254946232,0.04732637,87800.0,87795.0,0.001099]
[1767254946585,0.04732637,87800.0,87789.0,0.01089]
[1767254947001,0.04707572,87799.0,87789.0,0.01089]
[1767254947335,0.04707572,87799.0,87787.0,0.01144]
[1767254948298,0.0001446,87809.0,87789.0,0.51473255]
[1767254948496,0.0001446,87809.0,87787.0,0.01144]
[1767254948497,0.0001446,87809.0,87799.0,0.51473255]
[1767254948680,0.00049799,87809.0,87799.0,0.51473255]
[1767254948886,0.00049799,87809.0,87798.0,0.06060113]
[1767254949092,0.00049799,87809.0,87798.0,0.04921135]
[1767254949290,0.00049799,87809.0,87801.0,0.01138939]
[1767254949291,1.799e-05,87809.0,87801.0,0.01138939]
[1767254949529,1.799e-05,87809.0,87803.0,0.01138913]
[1767254949843,1.799e-05,87809.0,87799.0,0.5639439]
[1767254949844,1.799e-05,87809.0,87799.0,0.04921135]
[1767254950145,1.799e-05,87809.0,87797.0,0.01144]
[1767254950485,1.799e-05,87809.0,87795.0,0.01139017]
[1767254950685,0.04707572,87808.0,87796.0,0.01144]
[1767254951105,1.799e-05,87809.0,87797.0,0.01138991]
[1767254952086,1.799e-05,87809.0,87794.0,0.0228303]
[1767254952087,0.000549,87797.0,87794.0,0.0228303]
[1767254952307,0.51473255,87804.0,87794.0,0.01144]
[1767254952456,0.04707572,87806.0,87794.0,0.01144]
[1767254952859,0.04707572,87806.0,87794.0,0.0228303]
[1767254953277,0.04707572,87806.0,87794.0,0.01144]
[1767254954261,0.51473255,87804.0,87794.0,0.01144]
[1767254955098,0.000549,87794.0,87788.0,0.01139107]
[1767254955323,0.000549,87794.0,87789.0,0.02283094]
[1767254955715,0.51473255,87800.0,87790.0,0.01139081]
[1767254955948,0.04707572,87803.0,87789.0,0.02283094]
[1767254956489,0.04707572,87803.0,87790.0,0.01139081]
[1767254957641,0.51473255,87800.0,87790.0,0.01139081]
[1767254958025,0.51473255,87800.0,87791.0,0.01139068]
[1767254958207,0.51473255,87800.0,87790.0,0.01139081]
[1767254958979,0.51400455,87800.0,87790.0,0.01139081]
[1767254959177,0.51400455,87800.0,87789.0,0.02283094]
[1767254959334,0.51400455,87800.0,87790.0,0.01139081]
[1767254960161,0.04707572,87804.0,87790.0,0.01139081]
[1767254960515,1.799e-05,87809.0,87794.0,0.51473255]
[1767254960715,1.799e-05,87809.0,87804.0,0.00055]
[1767254961188,1.799e-05,87809.0,87800.0,0.04889673]
[1767254962485,1.799e-05,87809.0,87800.0,0.06028625]
[1767254962689,1.799e-05,87809.0,87799.0,0.51473255]
[1767254962690,0.01444,87818.0,87809.0,0.06096481]
[1767254962691,0.003,87818.0,87809.0,0.06096481]
[1767254962903,0.003,87818.0,87810.0,0.01144]
[1767254964563,0.003,87818.0,87810.0,0.06101646]
[1767254964905,0.00245,87818.0,87814.0,0.04957646]
[1767254965028,0.04825253,87827.0,87814.0,0.04957646]
[1767254965235,0.00022569,87821.0,87814.0,0.04957646]
[1767254965851,0.00022569,87821.0,87815.0,0.01144]
[1767254968583,0.00022569,87821.0,87815.0,0.010891]
[1767254970303,0.00022569,87821.0,87814.0,0.01144]
[1767254970510,0.00022569,87821.0,87814.0,0.01089]
[1767254972261,0.04825253,87820.0,87806.0,0.1488]
[1767254972475,0.04825253,87819.0,87807.0,0.01144]
[1767254972701,0.04825253,87819.0,87807.0,0.02282861]
[1767254972922,0.04825253,87819.0,87807.0,0.01144]
[1767254973124,0.04825253,87819.0,87807.0,0.02282861]
[1767254973880,0.04825253,87819.0,87808.0,0.01144]
[1767254977294,0.04825253,87819.0,87809.0,0.01144]
[1767254977552,0.00022569,87821.0,87810.0,0.04957646]
[1767254977752,0.00022569,87821.0,87809.0,0.52617255]
[1767254977753,0.51473255,87820.0,87809.0,0.01144]
[1767254981253,0.56298508,87820.0,87809.0,0.01144]
[1767254981460,0.56298508,87820.0,87810.0,0.01144]
[1767254983093,0.04825253,87819.0,87811.0,0.01144]
[1767254983444,0.00022569,87821.0,87819.0,0.001099]
[1767254983899,0.00022569,87821.0,87814.0,0.04957646]
[1767254983900,6.9e-07,87821.0,87814.0,0.04957646]
[1767254984321,6.9e-07,87821.0,87818.0,0.04957646]
[1767254984493,6.9e-07,87821.0,87818.0,0.06096364]
[1767254984844,6.9e-07,87821.0,87818.0,0.0609067]
[1767254985089,6.9e-07,87821.0,87820.0,0.04957646]
[1767254986625,6.9e-07,87821.0,87819.0,0.01144]
[1767254988010,6.9e-07,87821.0,87819.0,0.06101646]
[1767254988223,0.0001446,87828.0,87819.0,0.06101646]
[1767254988473,0.00028652,87832.0,87819.0,0.0609602]
[1767254988679,0.00028652,87832.0,87819.0,0.07234725]
[1767254989014,0.51473255,87830.0,87819.0,0.07234725]
[1767254989210,0.00028652,87832.0,87820.0,0.01138692]
[1767254989426,0.51473255,87830.0,87820.0,0.01138692]
[1767254989629,0.51473255,87830.0,87819.0,0.0609602]
[1767254990483,0.00028652,87832.0,87819.0,0.01138374]
[1767254990690,0.00028652,87832.0,87819.0,0.02277079]
[1767254990691,0.51473255,87830.0,87819.0,0.02277079]
[1767254990918,0.00028652,87832.0,87820.0,0.56255498]
[1767254991086,0.00028652,87832.0,87830.0,0.00055]
[1767254991284,0.00028652,87832.0,87823.0,0.04782243]
[1767254991867,0.00028652,87832.0,87823.0,0.05920896]
[1767254992271,0.51492325,87840.0,87832.0,0.000286]
[1767254992272,0.0001907,87840.0,87832.0,0.000286]
[1767254992493,0.0001907,87840.0,87832.0,0.04782243]
[1767254992926,0.0001907,87840.0,87834.0,0.01138511]
[1767254993132,0.0001907,87840.0,87831.0,0.0114]
[1767254993632,0.0001907,87840.0,87827.0,0.05920845]
[1767254993871,0.0001907,87840.0,87828.0,0.0114]
[1767254994081,0.0001907,87840.0,87830.0,0.51473255]
[1767254994256,0.0001907,87840.0,87828.0,0.05922243]
[1767254994460,0.51492325,87840.0,87823.0,0.04782243]
[1767254994640,0.51492325,87840.0,87821.0,0.01138679]
[1767254994641,0.56378382,87834.0,87825.0,0.0114]
[1767254994842,0.04905127,87834.0,87825.0,0.0114]
[1767254995675,0.04905127,87834.0,86239.0,0.0107197]
[1767254995676,0.04905127,87834.0,87815.0,0.01138757]
[1767254995911,0.000549,87825.0,87818.0,0.01138718]
[1767254996187,6.838e-05,87825.0,87818.0,0.01138718]
[1767254996596,0.04905127,87828.0,87825.0,0.00036261]
[1767254996967,0.04905127,87834.0,87828.0,0.00055]
[1767254997167,0.04905127,87834.0,87825.0,6.1e-07]
[1767255001487,0.0213209,87832.0,87818.0,0.02575914]
[1767255001686,0.12038011,87833.0,87818.0,0.02575914]
[1767255001687,0.51437956,87830.0,87818.0,0.02575914]
[1767255002171,4.241e-05,87829.0,87818.0,0.02575914]
[1767255006115,0.51457026,87840.0,87829.0,4.2e-05]
[1767255006116,0.0116307,87840.0,87829.0,4.2e-05]
[1767255006353,0.52601026,87840.0,87829.0,4.2e-05]
[1767255006533,0.52601026,87840.0,87827.0,0.04782243]
[1767255006915,0.00020727,87839.0,87819.0,0.04782243]
[1767255007118,0.00020727,87839.0,87820.0,0.01144]
[1767255007749,0.51437956,87830.0,87819.0,0.01144]
[1767255015792,0.51437956,87830.0,87818.0,0.07358157]
[1767255015933,0.51437956,87830.0,87819.0,0.01144]
[1767255016787,0.51437956,87830.0,87819.0,0.05926243]
[1767255018610,0.51437956,87830.0,87818.0,0.02575914]
[1767255018760,0.51437956,87830.0,87819.0,0.01144]
[1767255022732,0.52601026,87840.0,87831.0,0.0471915]
[1767255022733,0.0001907,87840.0,87831.0,0.0471915]
[1767255022986,0.51457026,87840.0,87831.0,0.0471915]
[1767255023624,0.51457026,87840.0,87820.0,0.0471915]
[1767255023625,0.000187,87831.0,87820.0,0.0471915]
[1767255023811,0.000187,87831.0,87819.0,0.01144]
[1767255023812,0.02462455,87839.0,87822.0,0.0471915]
[1767255024038,0.51457026,87840.0,87822.0,0.0471915]
[1767255024192,0.01068807,87839.0,87822.0,0.0471915]
[1767255024391,0.02462854,87839.0,87822.0,0.0471915]
[1767255025397,0.01069136,87838.0,87822.0,0.0471915]
[1767255025617,0.02462854,87839.0,87822.0,0.0471915]
[1767255025861,0.01069136,87838.0,87822.0,0.0471915]
[1767255026062,0.02462854,87839.0,87822.0,0.0471915]
[1767255026254,0.01069142,87838.0,87822.0,0.0471915]
[1767255026435,0.02462854,87839.0,87822.0,0.0471915]
[1767255026640,0.01069219,87838.0,87822.0,0.0471915]
[1767255026847,0.02462854,87839.0,87822.0,0.0471915]
[1767255027008,0.01069219,87838.0,87822.0,0.0471915]
[1767255027345,0.01069341,87837.0,87822.0,0.0471915]
[1767255027545,0.02462854,87839.0,87822.0,0.0471915]
[1767255027690,0.01069341,87838.0,87822.0,0.0471915]
[1767255027895,0.01069341,87837.0,87822.0,0.0471915]
[1767255028096,0.02462854,87839.0,87822.0,0.0471915]
[1767255028294,0.01069345,87838.0,87822.0,0.0471915]
[1767255028494,0.01069345,87837.0,87822.0,0.0471915]
[1767255028755,0.02462854,87839.0,87822.0,0.0471915]
[1767255028955,0.01069363,87838.0,87822.0,0.0471915]
[1767255029255,0.01069363,87837.0,87822.0,0.0471915]
[1767255029459,0.02462854,87839.0,87822.0,0.0471915]
[1767255029605,0.51437956,87832.0,87822.0,0.0471915]
[1767255029800,0.51437956,87832.0,87823.0,0.01144]
[1767255030998,0.51437956,87832.0,87823.0,0.0586315]
[1767255038760,0.00114885,87840.0,87823.0,0.0586315]
[1767255038964,0.51437956,87833.0,87823.0,0.0586315]
[1767255040023,0.22759745,87875.0,87824.0,0.0471915]
[1767255040024,0.01144,87844.0,87824.0,0.0471915]
[1767255040181,0.02213209,87843.0,87833.0,0.000912]
[1767255040384,0.06045208,87843.0,87826.0,0.01138614]
[1767255040970,0.06045208,87843.0,87825.0,0.05857777]
[1767255042015,0.06045208,87843.0,87825.0,0.0471915]
[1767255043647,0.06045208,87843.0,87825.0,0.05857777]
[1767255043814,0.06045208,87843.0,87825.0,0.0471915]
[1767255043976,0.56339164,87840.0,87825.0,0.0471915]
[1767255045309,0.04901208,87839.0,87823.0,0.01144]
[1767255045687,0.04901208,87839.0,87823.0,0.02282653]
[1767255046598,0.04901208,87839.0,87823.0,0.01144]
[1767255046846,0.04901208,87839.0,87823.0,0.02282653]
[1767255050248,0.04901208,87839.0,87823.0,0.01144]
[1767255055642,0.04901208,87839.0,87823.0,0.02282653]
[1767255060969,0.56166219,87833.0,87824.0,0.01144]
[1767255061182,0.04728411,87833.0,87824.0,0.01144]
[1767255063091,0.04728411,87833.0,87821.0,0.01144]
[1767255063483,0.04728411,87830.0,87821.0,0.01144]
[1767255066408,0.04692211,87830.0,87821.0,0.01144]
[1767255069921,0.000549,87821.0,87815.0,0.01138757]
[1767255070175,0.51437808,87825.0,87816.0,0.01144]
[1767255070361,0.04728411,87826.0,87816.0,0.01144]
[1767255073155,0.56166219,87826.0,87816.0,0.01144]
[1767255073368,0.56166219,87826.0,87815.0,6.838e-05]
[1767255073369,0.04728411,87825.0,87815.0,6.838e-05]
[1767255073544,0.04728411,87825.0,87816.0,0.0114]
[1767255074482,0.04728411,87825.0,87815.0,6.838e-05]
[1767255076630,0.04728411,87825.0,87814.0,0.00060253]
[1767255076832,0.04728411,87823.0,87814.0,0.00060253]
[1767255077557,0.0114,87829.0,87802.0,0.05694621]
[1767255077558,0.51492708,87814.0,87802.0,0.0114]
[1767255077787,0.04728411,87811.0,87802.0,0.01146839]
[1767255079739,0.04728411,87811.0,87794.0,0.0001569]
[1767255079740,0.000549,87802.0,87798.0,0.01144]
[1767255079939,0.51437808,87810.0,87798.0,0.01179339]
[1767255079940,0.56166219,87810.0,87798.0,0.01179339]
[1767255080564,0.51437808,87810.0,87798.0,0.01179339]
[1767255080765,0.51437808,87810.0,87798.0,0.00035339]
[1767255080766,0.05358715,87809.0,87798.0,0.00035339]
[1767255085412,0.05358715,87809.0,87798.0,3.9e-07]
[1767255092992,0.51437808,87808.0,87798.0,3.9e-07]
[1767255094262,0.04930011,87807.0,87798.0,3.9e-07]
[1767255120424,0.05346208,87805.0,87798.0,3.9e-07]
[1767255120625,0.01144,87804.0,87798.0,3.9e-07]
[1767255120809,0.06490208,87804.0,87798.0,3.9e-07]
[1767255128309,0.06416166,87803.0,87798.0,3.9e-07]
[1767255128510,0.05346208,87803.0,87798.0,3.9e-07]
[1767255129272,0.05310908,87803.0,87798.0,3.9e-07]
[1767255132698,0.01144,87804.0,87798.0,3.9e-07]
[1767255132917,0.01070085,87803.0,87798.0,3.9e-07]
[1767255133121,0.01144,87804.0,87798.0,3.9e-07]
[1767255133276,0.01070085,87803.0,87798.0,3.9e-07]
[1767255133486,0.01144,87804.0,87798.0,3.9e-07]
[1767255133707,0.03071405,87813.0,87804.0,0.00055]
[1767255133933,0.03609375,87812.0,87805.0,0.05117552]
[1767255134132,0.03609375,87811.0,87805.0,0.05117552]
[1767255134358,0.01144,87811.0,87805.0,0.05117552]
[1767255137191,0.01144,87811.0,87799.0,0.05139416]
[1767255137960,0.00143795,87811.0,87799.0,0.05139416]
[1767255138382,0.51485581,87820.0,87799.0,0.05139416]
[1767255138727,0.01144,87819.0,87799.0,0.05139416]
[1767255141385,0.01144,87819.0,87799.0,0.05187579]
[1767255142336,0.01144,87819.0,87801.0,0.05194147]
[1767255142550,0.01144,87819.0,87801.0,0.06338147]
[1767255143791,0.01144,87819.0,87801.0,0.05194147]
[1767255144019,0.06359591,87819.0,87802.0,0.01144]
[1767255144831,0.06359591,87819.0,87801.0,0.05194147]
[1767255145050,0.06359591,87819.0,87802.0,0.06351058]
[1767255146852,0.51485581,87812.0,87802.0,0.06351058]
[1767255147067,0.51485581,87812.0,87802.0,0.05207058]
[1767255147265,0.51485581,87812.0,87802.0,0.06351058]
[1767255147473,0.51485581,87812.0,87802.0,0.05207058]
[1767255147686,0.05215591,87811.0,87801.0,0.01144]
[1767255148784,0.51485581,87812.0,87801.0,0.01144]
[1767255149573,0.51485581,87812.0,87798.0,3.9e-07]
[1767255149798,0.51485581,87812.0,87798.0,0.06382097]
[1767255152191,0.51485581,87812.0,87799.0,0.0114]
[1767255152344,0.51485581,87812.0,87798.0,0.05238097]
[1767255152551,0.05215591,87811.0,87798.0,3.9e-07]
[1767255152893,0.51485581,87808.0,87798.0,3.9e-07]
[1767255161229,0.51485581,87810.0,87798.0,3.9e-07]
[1767255162485,0.05400219,87809.0,87798.0,3.9e-07]
[1767255179232,0.01069489,87808.0,87798.0,3.9e-07]
[1767255179429,0.05400219,87809.0,87798.0,3.9e-07]
[1767255179630,0.01069489,87808.0,87798.0,3.9e-07]
[1767255179852,0.01069489,87807.0,87798.0,3.9e-07]
[1767255180044,0.05196592,87808.0,87798.0,3.9e-07]
[1767255180246,0.01069534,87807.0,87798.0,3.9e-07]
[1767255180459,0.05196592,87808.0,87798.0,3.9e-07]
[1767255180592,0.01069534,87807.0,87798.0,3.9e-07]
[1767255180796,0.05196592,87808.0,87798.0,3.9e-07]
[1767255181095,0.01069534,87807.0,87798.0,3.9e-07]
[1767255181334,0.05196592,87808.0,87798.0,3.9e-07]
[1767255181571,0.01069554,87807.0,87798.0,3.9e-07]
[1767255181713,0.05196592,87808.0,87798.0,3.9e-07]
[1767255181945,0.01069554,87807.0,87798.0,3.9e-07]
[1767255182124,0.05196592,87808.0,87798.0,3.9e-07]
[1767255182332,0.06266194,87807.0,87798.0,3.9e-07]
[1767255182557,0.05196592,87807.0,87798.0,3.9e-07]
[1767255207630,0.01069849,87806.0,87798.0,3.9e-07]
[1767255207787,0.05196592,87807.0,87798.0,3.9e-07]
[1767255208009,0.05389038,87805.0,87798.0,3.9e-07]
[1767255229762,0.05389038,87803.0,87778.0,0.0114]
[1767255229969,0.56872775,87800.0,87780.0,0.51483737]
[1767255230171,0.56872775,87800.0,87782.0,0.0557674]
[1767255230963,0.05475604,87799.0,87782.0,0.0557674]
[1767255240765,0.51483737,87792.0,87774.0,0.00052072]
[1767255240950,0.51483737,87792.0,87738.0,0.05802099]
[1767255240951,0.05475604,87773.0,87764.0,0.0001481]
[1767255241187,0.05475604,87771.0,87753.0,0.0001437]
[1767255241360,0.51483737,87770.0,87753.0,0.05816469]
[1767255242138,0.51483737,87770.0,87754.0,0.05802099]
[1767255243169,0.51483737,87770.0,87754.0,0.05816469]
[1767255244581,0.05475604,87771.0,87754.0,0.05816469]
[1767255251822,0.05475604,87771.0,87755.0,0.05802099]
[1767255252234,0.05475604,87771.0,87755.0,0.0001437]
[1767255252413,0.05475604,87771.0,87756.0,0.05802099]
[1767255253186,0.05475604,87771.0,87756.0,0.05816469]
[1767255260164,0.05475604,87771.0,87756.0,0.06955992]
[1767255260373,0.05475604,87771.0,87756.0,0.05816469]
[1767255263602,0.05475604,87771.0,87756.0,0.06955992]
[1767255263917,0.05475604,87771.0,87756.0,0.05816469]
[1767255264118,0.05475604,87771.0,87756.0,0.06955992]
[1767255264633,0.05475604,87771.0,87756.0,0.05816469]
[1767255265184,0.05475604,87771.0,87756.0,0.06955992]
[1767255265429,0.05475604,87771.0,87756.0,0.05816469]
[1767255267849,0.05475604,87771.0,87756.0,0.06955992]
[1767255267993,0.00052069,87786.0,87765.0,0.05381493]
[1767255268211,0.01144,87785.0,87771.0,0.05381493]
[1767255269246,0.02465133,87784.0,87771.0,0.05381493]
[1767255269459,0.0106976,87783.0,87771.0,0.05381493]
[1767255269658,0.02465133,87784.0,87771.0,0.05381493]
[1767255269858,0.0106976,87783.0,87771.0,0.05381493]
[1767255270038,0.02465133,87784.0,87771.0,0.05381493]
[1767255270244,0.0106976,87783.0,87771.0,0.05381493]
[1767255270564,0.02465133,87784.0,87771.0,0.05381493]
[1767255270765,0.01069643,87783.0,87771.0,0.05381493]
[1767255270931,0.02465133,87784.0,87771.0,0.05381493]
[1767255271132,0.01069643,87783.0,87771.0,0.05381493]
[1767255271333,0.02465133,87784.0,87771.0,0.05381493]
[1767255271529,0.01069547,87783.0,87771.0,0.05381493]
[1767255271733,0.02465133,87784.0,87771.0,0.05381493]
[1767255271994,0.01069547,87783.0,87771.0,0.05381493]
[1767255272201,0.02465133,87784.0,87771.0,0.05381493]
[1767255272373,0.01069464,87783.0,87771.0,0.05381493]
[1767255272554,0.02465133,87784.0,87771.0,0.05381493]
[1767255272758,0.01069464,87783.0,87771.0,0.05381493]
[1767255272962,0.02465133,87784.0,87771.0,0.05381493]
[1767255277013,0.01196069,87786.0,87771.0,0.05381493]
[1767255279736,0.01196069,87786.0,87771.0,0.06520821]
[1767255280138,0.01196069,87786.0,87771.0,0.05381493]
[1767255280349,0.01196069,87786.0,87771.0,0.06520821]
[1767255280924,0.01196069,87786.0,87773.0,0.01139302]
[1767255281128,0.01196069,87786.0,87774.0,0.01139289]
[1767255281313,0.01196069,87786.0,87776.0,0.01139263]
[1767255281514,0.01196069,87786.0,87775.0,0.01139276]
[1767255282651,0.01196069,87786.0,87775.0,0.06520769]
[1767255283626,0.01196069,87786.0,87775.0,0.05381493]
[1767255304599,0.01196069,87786.0,87776.0,0.51487302]
[1767255304891,0.00052069,87786.0,87776.0,0.51487302]
[1767255314413,0.00052069,87786.0,87776.0,0.5742893]
[1767255318167,0.00052069,87786.0,87776.0,0.58568193]
[1767255318376,0.00052069,87786.0,87776.0,0.5742893]
[1767255321917,0.00052069,87786.0,87776.0,0.05941628]
[1767255331306,0.00052069,87786.0,87777.0,0.0113925]
[1767255331507,0.0002091,87798.0,87786.0,0.01139133]
[1767255331805,0.01070067,87797.0,87788.0,0.51487302]
[1767255332005,0.01070067,87796.0,87788.0,0.51487302]
[1767255332182,0.01070067,87796.0,87786.0,0.05450113]
[1767255332183,0.00016656,87798.0,87786.0,0.56937415]
[1767255332364,0.00016656,87798.0,87788.0,0.51487302]
[1767255332579,0.00016656,87798.0,87788.0,0.51494144]
[1767255332989,0.06122205,87788.0,87777.0,0.0113925]
[1767255333184,0.06122205,87788.0,87778.0,0.01144]
[1767255333395,0.06122205,87788.0,87779.0,0.01144]
[1767255333586,0.06012305,87788.0,87779.0,0.01144]
[1767255335808,0.06012305,87793.0,87779.0,0.01144]
[1767255336012,0.51487302,87790.0,87779.0,0.01144]
[1767255336267,0.06028961,87798.0,87779.0,0.01144]
[1767255336459,0.06012305,87796.0,87779.0,0.01144]
[1767255336659,0.51487302,87790.0,87779.0,0.01144]
[1767255338963,0.06012305,87796.0,87779.0,0.01144]
[1767255340369,0.06012305,87796.0,87779.0,0.010891]
[1767255340577,0.57499607,87790.0,87780.0,0.0114]
[1767255340775,0.57499607,87790.0,87777.0,0.00010605]
[1767255341002,0.57499607,87790.0,87778.0,0.0114]
[1767255342817,0.06012305,87790.0,87778.0,0.0114]
[1767255344607,0.57499607,87790.0,87778.0,0.0114]
[1767255346404,0.57499607,87790.0,87777.0,0.00010605]
[1767255346619,0.06012305,87790.0,87778.0,0.0114]
[1767255353937,0.57499607,87790.0,87778.0,0.0114]
[1767255363943,0.06012305,87790.0,87778.0,0.0114]
[1767255364720,0.05743879,87797.0,87780.0,0.51487302]
[1767255364924,0.00016656,87798.0,87780.0,0.51487302]
[1767255364925,0.06814056,87796.0,87780.0,0.51487302]
[1767255365285,0.01070177,87795.0,87780.0,0.51487302]
[1767255365464,0.01070177,87794.0,87780.0,0.51487302]
[1767255365638,0.05743879,87796.0,87780.0,0.51487302]
[1767255365840,0.01070176,87795.0,87780.0,0.51487302]
[1767255366028,0.01070176,87794.0,87780.0,0.51487302]
[1767255366225,0.05743879,87796.0,87780.0,0.51487302]
[1767255366428,0.01070173,87795.0,87780.0,0.51487302]
[1767255366632,0.01070173,87794.0,87778.0,0.06972769]